fUST/lending_fUST_20250729
["ID","MTS","AMOUNT","RATE_DAILY","PERIOD"]
[375758173,1753731053850,-202.34,0.00022651,2]
[375758175,1753731053860,-480.0,0.00022662,2]
[375758177,1753731053870,-4670.9083895,0.00022726,2]
[375758179,1753731053880,-523.9,0.00022737,5]
[375758181,1753731053889,-460.0,0.00022739,2]
[375758183,1753731053900,-460.0,0.00022739,2]
[375758185,1753731053910,-437.15,0.00022739,2]
[375758187,1753731053919,-597.31,0.00022739,2]
[375758189,1753731053929,-907.07,0.00022739,2]
[375758191,1753731053938,-460.0,0.00022739,2]
[375758193,1753731053948,-460.0,0.00022739,2]
[375758195,1753731053959,-313.23,0.00022739,2]
[375758197,1753731053968,-2009.4,0.00022739,2]
[375758199,1753731053978,-1483.73,0.00022739,2]
[375758201,1753731053987,-460.0,0.00022739,2]
[375758203,1753731053997,-460.0,0.00022739,2]
[375758205,1753731054008,-308.76,0.00022739,2]
[375758207,1753731054017,-460.0,0.00022739,2]
[375758209,1753731054027,-2603.27,0.00022739,2]
[375758211,1753731054036,-460.0,0.00022739,2]
[375758213,1753731054046,-460.0,0.00022739,2]
[375758215,1753731054055,-460.0,0.00022739,2]
[375758217,1753731054065,-1006.12,0.00022739,2]
[375758219,1753731054074,-460.0,0.00022739,2]
[375758221,1753731054083,-1479.92,0.00022739,2]
[375758223,1753731054092,-1414.21,0.00022739,2]
[375758225,1753731054101,-1706.3,0.00022739,2]
[375758227,1753731054110,-500.63,0.00022739,2]
[375758229,1753731054120,-460.0,0.00022739,2]
[375758231,1753731054129,-460.0,0.00022739,2]
[375758233,1753731054138,-460.0,0.00022739,2]
[375758235,1753731054150,-1358.46,0.00022739,2]
[375758237,1753731054160,-708.52,0.00022739,2]
[375758238,1753731054169,-613.11,0.00022739,2]
[375758240,1753731054179,-460.0,0.00022739,2]
[375758242,1753731054188,-1267.91,0.00022739,2]
[375758244,1753731054198,-11665.39837505,0.000229,7]
[375758246,1753731054207,-25000.0,0.0002291,2]
[375758248,1753731054217,-3942.302754,0.0002291,2]
[375758250,1753731054226,-151.0,0.0002291,2]
[375758252,1753731054235,-151.0,0.0002291,2]
[375758254,1753731054244,-10902.0249033,0.00022953,2]
[375758256,1753731054254,-160.0,0.00023,2]
[375758258,1753731054263,-1491.97,0.00023,2]
[375758260,1753731054273,-460.0,0.00023013,2]
[375758262,1753731054282,-460.0,0.00023013,2]
[375758264,1753731054291,-597.31,0.00023013,2]
[375758266,1753731054300,-907.07,0.00023013,2]
[375758268,1753731054310,-460.0,0.00023013,2]
[375758270,1753731054321,-403.09,0.00023013,2]
[375758272,1753731054332,-2009.4,0.00023013,2]
[375758274,1753731054341,-1483.73,0.00023013,2]
[375758276,1753731054351,-460.0,0.00023013,2]
[375758278,1753731054360,-460.0,0.00023013,2]
[375758280,1753731054370,-460.0,0.00023013,2]
[375758282,1753731054379,-2603.27,0.00023013,2]
[375758284,1753731054388,-460.0,0.00023013,2]
[375758286,1753731054398,-460.0,0.00023013,2]
[375758288,1753731054408,-460.0,0.00023013,2]
[375758290,1753731054418,-1006.12,0.00023013,2]
[375758292,1753731054427,-460.0,0.00023013,2]
[375758294,1753731054437,-1479.92,0.00023013,2]
[375758296,1753731054446,-1414.21,0.00023013,2]
[375758297,1753731054456,-500.63,0.00023013,2]
[375758299,1753731054466,-1706.3,0.00023013,2]
[375758301,1753731054475,-460.0,0.00023013,2]
[375758303,1753731054484,-460.0,0.00023013,2]
[375758306,1753731054495,-460.0,0.00023013,2]
[375758308,1753731054504,-1358.46,0.00023013,2]
[375758310,1753731054514,-708.52,0.00023013,2]
[375758312,1753731054524,-613.11,0.00023013,2]
[375758314,1753731054533,-460.0,0.00023013,2]
[375758316,1753731054544,-1267.91,0.00023013,2]
[375758318,1753731054553,-12253.1,0.000231,7]
[375758320,1753731054562,-202.34,0.0002312,2]
[375758322,1753731054571,-969.0,0.0002316,2]
[375758324,1753731054581,-407.0,0.0002316,2]
[375758326,1753731054590,-424.33,0.0002316,2]
[375758328,1753731054599,-2159.0,0.0002316,2]
[375758329,1753731054607,-523.9,0.00023167,5]
[375758331,1753731054616,-660.0,0.00023173,2]
[375758333,1753731054626,-158.089306,0.00023174,2]
[375758335,1753731054636,-2860.15,0.000232,7]
[375758337,1753731054647,-500.0,0.0002323,8]
[375758339,1753731054656,-503.81332379,0.0002323,8]
[375758341,1753731054666,-500.0,0.0002323,8]
[375758343,1753731054675,-233.04724231,0.00023287,2]
[375758345,1753731054684,-500.0,0.00023287,2]
[375758347,1753731054693,-460.0,0.00023287,2]
[375758349,1753731054706,-597.31,0.00023287,2]
[375758351,1753731054716,-907.07,0.00023287,2]
[375758353,1753731054726,-460.0,0.00023287,2]
[375758355,1753731054736,-2009.4,0.00023287,2]
[375758357,1753731054747,-1483.73,0.00023287,2]
[375758359,1753731054758,-460.0,0.00023287,2]
[375758361,1753731054768,-460.0,0.00023287,2]
[375758364,1753731054778,-391.67,0.00023287,2]
[375758366,1753731054787,-1486.70250313,0.00023287,2]
[375758383,1753731054981,-460.0,0.00019178,2]
[375758384,1753731054991,-1056.24,0.00021095,2]
[375758385,1753731055001,-1056.24,0.00021369,2]
[375758386,1753731055011,-537.73,0.00022739,2]
[375758387,1753731055020,-537.73,0.00023013,2]
[375758388,1753731055030,-1116.56749687,0.00023287,2]
[375758389,1753731055039,-460.0,0.00023287,2]
[375758390,1753731055049,-460.0,0.00023287,2]
[375758391,1753731055058,-460.0,0.00023287,2]
[375758392,1753731055068,-1006.12,0.00023287,2]
[375758393,1753731055077,-173.62694003,0.00023287,2]
[375758394,1753731055086,-1479.92,0.00023287,2]
[375758395,1753731055095,-1414.21,0.00023287,2]
[375758396,1753731055104,-500.63,0.00023287,2]
[375758397,1753731055114,-1706.3,0.00023287,2]
[375758398,1753731055123,-460.0,0.00023287,2]
[375758399,1753731055132,-460.0,0.00023287,2]
[375758400,1753731055141,-460.0,0.00023287,2]
[375758401,1753731055152,-1358.46,0.00023287,2]
[375758402,1753731055161,-708.52,0.00023287,2]
[375758404,1753731055170,-613.11,0.00023287,2]
[375758406,1753731055179,-460.0,0.00023287,2]
[375758408,1753731055189,-1267.91,0.00023287,2]
[375758410,1753731055198,-537.73,0.00023287,2]
[375758412,1753731055207,-16690.9555631,0.000233,2]
[375758444,1753731055517,-460.0,0.00019178,2]
[375758446,1753731055527,-190.24718185,0.00019178,2]
[375758448,1753731055539,-269.75281815,0.00019178,2]
[375758450,1753731055548,-271.89718185,0.00019452,2]
[375758486,1753731055923,-350.943936,0.00019178,2]
[375758572,1753731056837,-85.91468,0.00019178,2]
[375759132,1753731070258,150.0,0.00020762,30]
[375759133,1753731070672,150.0,0.00021751,30]
[375759134,1753731071099,150.0,0.0002274,30]
[375759135,1753731142968,150.0,0.00020356,30]
[375759138,1753731215165,150.0,0.00020107,30]
[375759139,1753731251053,10000.0,0.00018387,2]
[375759140,1753731286796,150.0,0.00019801,30]
[375759141,1753731360159,150.0,0.0002035,30]
[375759143,1753731566052,1319.60512632,0.0001901,2]
[375759144,1753731566078,3680.39487368,0.0001901,2]
[375759146,1753731581943,5000.0,0.0001901,2]
[375759147,1753731597644,5000.0,0.0001901,2]
[375759148,1753731601010,460.384944,0.00013699,2]
[375759158,1753731676380,433.269392,0.00018148,2]
[375759165,1753731929447,469.67656716,0.00018977,2]
[375759167,1753732025154,-187.0,0.00019075,2]
[375759168,1753732025679,-299.0,0.00019075,2]
[375759169,1753732025714,-300.0,0.00019075,2]
[375759170,1753732025737,-300.0,0.00019075,2]
[375759171,1753732025758,-244.0,0.00019075,2]
[375759172,1753732025781,-823.0,0.00019075,2]
[375759173,1753732025804,-832.03142546,0.00019076,2]
[375759174,1753732037896,405.61787021,0.000189,2]
[375759176,1753732089412,24550.65635295,0.00018172,2]
[375759177,1753732089435,349.34364705,0.00018172,2]
[375759224,1753732232251,-410.9669963,0.00019057,2]
[375759259,1753732232765,-300.0,0.00019076,2]
[375759261,1753732232774,-614.309453,0.00019076,2]
[375759263,1753732232786,-585.690547,0.00019076,2]
[375759265,1753732232795,-500.0,0.00019077,2]
[375759267,1753732232804,-292.71183131,0.00019077,2]
[375759269,1753732232814,-19.29274761,0.00019077,2]
[375759271,1753732232825,-244.2216591,0.00019077,2]
[375759273,1753732232837,-317.9712607,0.00019077,2]
[375759276,1753732232848,-249.50029893,0.00019077,2]
[375759278,1753732232858,-25.38787971,0.00019077,2]
[375759445,1753732238155,-474.61212029,0.00019077,2]
[375759446,1753732238165,-500.0,0.00019077,2]
[375759447,1753732238174,-156.27233067,0.00019077,2]
[375759448,1753732238184,-467.8852828,0.00019077,2]
[375759449,1753732238193,-208.61118134,0.00019078,2]
[375759450,1753732238207,-1041.298973,0.00019078,2]
[375759451,1753732238261,-140216.29402095,0.00019078,2]
[375759452,1753732238271,-408.55,0.00019157,3]
[375759453,1753732238280,-204.27,0.00019157,3]
[375759454,1753732238289,-612.86,0.00019157,3]
[375759455,1753732238299,-50000.0,0.00019167,2]
[375759456,1753732238308,-160.0,0.00019175,2]
[375759457,1753732238318,-23.141384,0.00019178,2]
[375759458,1753732238327,-460.0,0.00019178,2]
[375759459,1753732238337,-460.0,0.00019178,2]
[375759460,1753732238347,-460.0,0.00019178,2]
[375759461,1753732238356,-460.0,0.00019178,2]
[375759462,1753732238366,-460.0,0.00019178,2]
[375759463,1753732238375,-460.0,0.00019178,2]
[375759464,1753732238384,-951.44,0.00019178,2]
[375759465,1753732238394,-460.0,0.00019178,2]
[375759466,1753732238403,-460.0,0.00019178,2]
[375759467,1753732238412,-460.0,0.00019178,2]
[375759468,1753732238421,-460.0,0.00019178,2]
[375759469,1753732238432,-460.77353787,0.00019178,2]
[375759470,1753732238442,-670.97,0.00019178,2]
[375759471,1753732238451,-460.0,0.00019178,2]
[375759472,1753732238460,-460.0,0.00019178,2]
[375759473,1753732238469,-460.0,0.00019178,2]
[375759474,1753732238478,-460.0,0.00019178,2]
[375759475,1753732238488,-460.0,0.00019178,2]
[375759476,1753732238497,-460.0,0.00019178,2]
[375759477,1753732238506,-460.0,0.00019178,2]
[375759478,1753732238515,-460.0,0.00019178,2]
[375759479,1753732238524,-460.0,0.00019178,2]
[375759480,1753732238534,-596.17332895,0.00019178,2]
[375759481,1753732238543,-460.0,0.00019178,2]
[375759482,1753732238553,-460.0,0.00019178,2]
[375759483,1753732238562,-460.0,0.00019178,2]
[375759484,1753732238572,-460.0,0.00019178,2]
[375759485,1753732238581,-460.0,0.00019178,2]
[375759486,1753732238592,-460.0,0.00019178,2]
[375759487,1753732238601,-460.0,0.00019178,2]
[375759488,1753732238611,-460.0,0.00019178,2]
[375759489,1753732238620,-460.0,0.00019178,2]
[375759490,1753732238629,-460.0,0.00019178,2]
[375759491,1753732238639,-460.0,0.00019178,2]
[375759492,1753732238648,-475.44,0.00019178,2]
[375759493,1753732238658,-256.05991759,0.00019178,2]
[375759494,1753732238668,-460.0,0.00019178,2]
[375759495,1753732238677,-460.0,0.00019178,2]
[375759496,1753732238686,-460.0,0.00019178,2]
[375759497,1753732238695,-460.0,0.00019178,2]
[375759498,1753732238704,-460.0,0.00019178,2]
[375759499,1753732238714,-460.0,0.00019178,2]
[375759500,1753732238723,-460.0,0.00019178,2]
[375759501,1753732238732,-460.0,0.00019178,2]
[375759502,1753732238742,-578.46,0.00019178,2]
[375759503,1753732238751,-583.53890726,0.00019178,2]
[375759504,1753732238760,-4776.13,0.00019178,2]
[375759505,1753732238770,-460.0,0.00019178,2]
[375759506,1753732238780,-460.0,0.00019178,2]
[375759507,1753732238789,-460.0,0.00019178,2]
[375759508,1753732238798,-460.0,0.00019178,2]
[375759509,1753732238807,-460.0,0.00019178,2]
[375759510,1753732238817,-460.0,0.00019178,2]
[375759511,1753732238827,-460.0,0.00019178,2]
[375759512,1753732238837,-460.0,0.00019178,2]
[375759513,1753732238846,-2556.15,0.00019178,2]
[375759514,1753732238855,-5853.43,0.00019178,2]
[375759515,1753732238865,-516.35,0.00019178,2]
[375759516,1753732238874,-541.14,0.00019178,2]
[375759517,1753732238883,-542.76,0.00019178,2]
[375759518,1753732238892,-460.0,0.00019178,2]
[375759519,1753732238902,-460.0,0.00019178,2]
[375759520,1753732238911,-460.0,0.00019178,2]
[375759521,1753732238920,-278.99692248,0.00019178,2]
[375759522,1753732238930,-1757.55,0.00019178,2]
[375759523,1753732238939,-460.0,0.00019178,2]
[375759524,1753732238948,-460.0,0.00019178,2]
[375759525,1753732238957,-460.0,0.00019178,2]
[375759526,1753732238966,-460.0,0.00019178,2]
[375759527,1753732238975,-460.0,0.00019178,2]
[375759528,1753732238984,-994.68,0.00019178,2]
[375759529,1753732238993,-505.23,0.00019178,2]
[375759530,1753732239002,-3430.45,0.00019178,2]
[375759531,1753732239013,-460.0,0.00019178,2]
[375759532,1753732239022,-460.0,0.00019178,2]
[375759533,1753732239033,-473.2,0.00019178,2]
[375759534,1753732239044,-622.29,0.00019178,2]
[375759535,1753732239053,-460.0,0.00019178,2]
[375759536,1753732239062,-460.68381771,0.00019178,2]
[375759537,1753732239071,-1565.51,0.00019178,2]
[375759538,1753732239081,-930.17,0.00019178,2]
[375759539,1753732239091,-460.0,0.00019178,2]
[375759540,1753732239099,-460.0,0.00019178,2]
[375759541,1753732239110,-460.0,0.00019178,2]
[375759542,1753732239119,-460.0,0.00019178,2]
[375759543,1753732239128,-738.4,0.00019178,2]
[375759544,1753732239138,-460.0,0.00019178,2]
[375759545,1753732239146,-460.0,0.00019178,2]
[375759546,1753732239155,-460.0,0.00019178,2]
[375759547,1753732239165,-460.0,0.00019178,2]
[375759548,1753732239174,-526.8,0.00019178,2]
[375759549,1753732239183,-562.19,0.00019178,2]
[375759550,1753732239192,-460.0,0.00019178,2]
[375759551,1753732239201,-460.0,0.00019178,2]
[375759552,1753732239211,-460.0,0.00019178,2]
[375759553,1753732239219,-460.0,0.00019178,2]
[375759554,1753732239229,-3165.1,0.00019178,2]
[375759555,1753732239238,-460.0,0.00019178,2]
[375759556,1753732239247,-460.0,0.00019178,2]
[375759557,1753732239257,-1490.83,0.00019178,2]
[375759558,1753732239266,-552.63758959,0.00019178,2]
[375759559,1753732239275,-460.0,0.00019178,2]
[375759560,1753732239284,-460.0,0.00019178,2]
[375759561,1753732239293,-483.33,0.00019178,2]
[375759562,1753732239302,-460.0,0.00019178,2]
[375759563,1753732239312,-2025.5,0.00019178,2]
[375759564,1753732239321,-460.0,0.00019178,2]
[375759565,1753732239330,-460.0,0.00019178,2]
[375759566,1753732239340,-1649.51,0.00019178,2]
[375759567,1753732239349,-904.77,0.00019178,2]
[375759568,1753732239358,-500.38,0.00019178,2]
[375759569,1753732239367,-460.0,0.00019178,2]
[375759570,1753732239377,-460.0,0.00019178,2]
[375759571,1753732239389,-460.0,0.00019178,2]
[375759572,1753732239398,-710.73,0.00019178,2]
[375759573,1753732239407,-460.0,0.00019178,2]
[375759574,1753732239416,-460.0,0.00019178,2]
[375759575,1753732239426,-460.0,0.00019178,2]
[375759576,1753732239435,-460.0,0.00019178,2]
[375759577,1753732239444,-1387.64,0.00019178,2]
[375759578,1753732239453,-645.56,0.00019178,2]
[375759579,1753732239463,-460.0,0.00019178,2]
[375759580,1753732239472,-460.0,0.00019178,2]
[375759581,1753732239482,-460.0,0.00019178,2]
[375759582,1753732239492,-460.0,0.00019178,2]
[375759583,1753732239501,-460.0,0.00019178,2]
[375759584,1753732239511,-460.0,0.00019178,2]
[375759585,1753732239521,-460.0,0.00019178,2]
[375759586,1753732239530,-359.71876823,0.00019178,2]
[375759587,1753732239540,-516.92041495,0.00019178,2]
[375759588,1753732239549,-265.405404,0.00019178,2]
[375759589,1753732239559,-1387.31851069,0.00019352,2]
[375759590,1753732239569,-11140.64501357,0.00019352,2]
[375759591,1753732239578,-460.0,0.00019452,2]
[375759592,1753732239587,-406.32225966,0.00019452,2]
[375759593,1753732239597,-460.0,0.00019452,2]
[375759594,1753732239606,-460.0,0.00019452,2]
[375759596,1753732239615,-951.44,0.00019452,2]
[375759598,1753732239625,-460.0,0.00019452,2]
[375759599,1753732239635,-460.0,0.00019452,2]
[375759600,1753732239644,-670.97,0.00019452,2]
[375759601,1753732239654,-460.0,0.00019452,2]
[375759602,1753732239664,-460.0,0.00019452,2]
[375759603,1753732239673,-460.0,0.00019452,2]
[375759604,1753732239683,-460.0,0.00019452,2]
[375759605,1753732239692,-460.0,0.00019452,2]
[375759606,1753732239702,-460.0,0.00019452,2]
[375759607,1753732239711,-600.78355117,0.00019452,2]
[375759609,1753732239721,-460.0,0.00019452,2]
[375759610,1753732239730,-475.44,0.00019452,2]
[375759612,1753732239739,-460.0,0.00019452,2]
[375759613,1753732239749,-460.0,0.00019452,2]
[375759614,1753732239758,-460.0,0.00019452,2]
[375759615,1753732239767,-460.0,0.00019452,2]
[375759616,1753732239777,-460.0,0.00019452,2]
[375759617,1753732239787,-460.0,0.00019452,2]
[375759618,1753732239796,-460.0,0.00019452,2]
[375759619,1753732239805,-578.46,0.00019452,2]
[375759620,1753732239814,-4776.13,0.00019452,2]
[375759621,1753732239823,-460.0,0.00019452,2]
[375759622,1753732239833,-193.78286357,0.00019452,2]
[375759623,1753732239843,-460.0,0.00019452,2]
[375759624,1753732239853,-571.55,0.00019452,2]
[375759625,1753732239862,-460.0,0.00019452,2]
[375759626,1753732239872,-460.0,0.00019452,2]
[375759627,1753732239881,-460.0,0.00019452,2]
[375759628,1753732239891,-460.0,0.00019452,2]
[375759629,1753732239900,-2556.15,0.00019452,2]
[375759630,1753732239909,-5853.43,0.00019452,2]
[375759631,1753732239918,-541.14,0.00019452,2]
[375759632,1753732239927,-542.76,0.00019452,2]
[375759633,1753732239936,-460.0,0.00019452,2]
[375759634,1753732239945,-460.0,0.00019452,2]
[375759635,1753732239955,-498.6,0.00019452,2]
[375759636,1753732239964,-1757.55,0.00019452,2]
[375759637,1753732239974,-460.0,0.00019452,2]
[375759638,1753732239983,-460.0,0.00019452,2]
[375759639,1753732239992,-460.0,0.00019452,2]
[375759640,1753732240002,-460.0,0.00019452,2]
[375759641,1753732240011,-460.0,0.00019452,2]
[375759642,1753732240021,-994.68,0.00019452,2]
[375759643,1753732240031,-505.23,0.00019452,2]
[375759644,1753732240043,-3430.45,0.00019452,2]
[375759645,1753732240053,-460.0,0.00019452,2]
[375759646,1753732240062,-405.28395478,0.00019452,2]
[375759647,1753732240072,-473.2,0.00019452,2]
[375759648,1753732240081,-622.29,0.00019452,2]
[375759649,1753732240092,-460.0,0.00019452,2]
[375759650,1753732240101,-1565.51,0.00019452,2]
[375759651,1753732240111,-930.17,0.00019452,2]
[375759652,1753732240121,-460.0,0.00019452,2]
[375759653,1753732240130,-460.0,0.00019452,2]
[375759654,1753732240139,-460.0,0.00019452,2]
[375759655,1753732240149,-460.0,0.00019452,2]
[375759656,1753732240158,-738.4,0.00019452,2]
[375759657,1753732240167,-460.0,0.00019452,2]
[375759658,1753732240176,-460.0,0.00019452,2]
[375759659,1753732240185,-460.0,0.00019452,2]
[375759660,1753732240194,-562.19,0.00019452,2]
[375759661,1753732240203,-460.0,0.00019452,2]
[375759662,1753732240213,-396.6526537,0.00019452,2]
[375759663,1753732240222,-460.0,0.00019452,2]
[375759664,1753732240232,-3165.1,0.00019452,2]
[375759665,1753732240241,-460.0,0.00019452,2]
[375759666,1753732240250,-1490.83,0.00019452,2]
[375759667,1753732240259,-460.0,0.00019452,2]
[375759668,1753732240269,-460.0,0.00019452,2]
[375759669,1753732240278,-483.33,0.00019452,2]
[375759670,1753732240287,-460.0,0.00019452,2]
[375759671,1753732240297,-2025.5,0.00019452,2]
[375759672,1753732240306,-460.0,0.00019452,2]
[375759673,1753732240315,-1649.51,0.00019452,2]
[375759674,1753732240324,-904.77,0.00019452,2]
[375759675,1753732240333,-500.38,0.00019452,2]
[375759676,1753732240345,-460.0,0.00019452,2]
[375759677,1753732240355,-460.0,0.00019452,2]
[375759678,1753732240364,-460.0,0.00019452,2]
[375759679,1753732240373,-710.73,0.00019452,2]
[375759680,1753732240383,-460.0,0.00019452,2]
[375759681,1753732240392,-460.0,0.00019452,2]
[375759682,1753732240401,-460.0,0.00019452,2]
[375759683,1753732240410,-1387.64,0.00019452,2]
[375759684,1753732240419,-645.56,0.00019452,2]
[375759685,1753732240429,-460.0,0.00019452,2]
[375759686,1753732240438,-460.0,0.00019452,2]
[375759687,1753732240447,-460.0,0.00019452,2]
[375759688,1753732240456,-460.0,0.00019452,2]
[375759689,1753732240466,-460.0,0.00019452,2]
[375759690,1753732240476,-460.0,0.00019452,2]
[375759691,1753732240486,-200.0,0.00019458,15]
[375759692,1753732240496,-200.0,0.00019458,15]
[375759693,1753732240505,-200.0,0.00019458,15]
[375759694,1753732240514,-200.0,0.00019458,15]
[375759695,1753732240523,-460.0,0.00019726,2]
[375759696,1753732240533,-460.0,0.00019726,2]
[375759697,1753732240543,-951.44,0.00019726,2]
[375759698,1753732240552,-460.0,0.00019726,2]
[375759699,1753732240562,-670.97,0.00019726,2]
[375759700,1753732240571,-448.54898413,0.00019726,2]
[375759701,1753732240582,-460.0,0.00019726,2]
[375759702,1753732240598,-460.0,0.00019726,2]
[375759703,1753732240608,-460.0,0.00019726,2]
[375759704,1753732240618,-460.0,0.00019726,2]
[375759705,1753732240627,-460.0,0.00019726,2]
[375759706,1753732240637,-460.0,0.00019726,2]
[375759707,1753732240648,-475.44,0.00019726,2]
[375759708,1753732240658,-460.0,0.00019726,2]
[375759709,1753732240668,-460.0,0.00019726,2]
[375759710,1753732240678,-460.0,0.00019726,2]
[375759711,1753732240687,-460.0,0.00019726,2]
[375759712,1753732240825,-460.0,0.00019726,2]
[375759713,1753732240838,-460.0,0.00019726,2]
[375759714,1753732240848,-578.46,0.00019726,2]
[375759715,1753732240858,-4776.13,0.00019726,2]
[375759716,1753732240867,-460.0,0.00019726,2]
[375759717,1753732240877,-460.0,0.00019726,2]
[375759718,1753732240886,-460.0,0.00019726,2]
[375759719,1753732240896,-460.0,0.00019726,2]
[375759720,1753732240906,-460.0,0.00019726,2]
[375759721,1753732240915,-460.0,0.00019726,2]
[375759722,1753732240924,-2556.15,0.00019726,2]
[375759724,1753732240933,-5853.43,0.00019726,2]
[375759726,1753732240942,-541.14,0.00019726,2]
[375759727,1753732240952,-542.76,0.00019726,2]
[375759728,1753732240961,-460.0,0.00019726,2]
[375759729,1753732240971,-460.0,0.00019726,2]
[375759730,1753732240981,-1757.55,0.00019726,2]
[375759731,1753732240990,-460.0,0.00019726,2]
[375759732,1753732241000,-460.0,0.00019726,2]
[375759733,1753732241009,-460.0,0.00019726,2]
[375759734,1753732241019,-460.0,0.00019726,2]
[375759735,1753732241029,-460.0,0.00019726,2]
[375759736,1753732241043,-994.68,0.00019726,2]
[375759737,1753732241052,-505.23,0.00019726,2]
[375759738,1753732241062,-3430.45,0.00019726,2]
[375759739,1753732241071,-460.0,0.00019726,2]
[375759740,1753732241082,-473.2,0.00019726,2]
[375759741,1753732241093,-622.29,0.00019726,2]
[375759742,1753732241102,-460.0,0.00019726,2]
[375759743,1753732241111,-1565.51,0.00019726,2]
[375759744,1753732241122,-930.17,0.00019726,2]
[375759745,1753732241132,-460.0,0.00019726,2]
[375759746,1753732241141,-460.0,0.00019726,2]
[375759747,1753732241149,-460.0,0.00019726,2]
[375759748,1753732241158,-460.0,0.00019726,2]
[375759749,1753732241167,-738.4,0.00019726,2]
[375759750,1753732241177,-460.0,0.00019726,2]
[375759751,1753732241194,-460.0,0.00019726,2]
[375759752,1753732241211,-460.0,0.00019726,2]
[375759753,1753732241221,-460.0,0.00019726,2]
[375759754,1753732241230,-562.19,0.00019726,2]
[375759755,1753732241239,-460.0,0.00019726,2]
[375759756,1753732241248,-3165.1,0.00019726,2]
[375759757,1753732241257,-460.0,0.00019726,2]
[375759758,1753732241266,-1490.83,0.00019726,2]
[375759759,1753732241275,-460.0,0.00019726,2]
[375759760,1753732241284,-460.0,0.00019726,2]
[375759761,1753732241293,-483.33,0.00019726,2]
[375759762,1753732241302,-460.0,0.00019726,2]
[375759763,1753732241311,-2025.5,0.00019726,2]
[375759764,1753732241320,-1649.51,0.00019726,2]
[375759765,1753732241331,-904.77,0.00019726,2]
[375759766,1753732241342,-500.38,0.00019726,2]
[375759767,1753732241351,-460.0,0.00019726,2]
[375759768,1753732241360,-460.0,0.00019726,2]
[375759769,1753732241368,-460.0,0.00019726,2]
[375759770,1753732241377,-710.73,0.00019726,2]
[375759771,1753732241387,-460.0,0.00019726,2]
[375759772,1753732241395,-460.0,0.00019726,2]
[375759773,1753732241404,-460.0,0.00019726,2]
[375759774,1753732241413,-1387.64,0.00019726,2]
[375759775,1753732241422,-645.56,0.00019726,2]
[375759776,1753732241431,-460.0,0.00019726,2]
[375759777,1753732241441,-460.0,0.00019726,2]
[375759778,1753732241450,-460.0,0.00019726,2]
[375759779,1753732241459,-460.0,0.00019726,2]
[375759780,1753732241469,-460.0,0.00019726,2]
[375759781,1753732241479,-460.0,0.00019726,2]
[375759782,1753732241487,-500.0,0.00019782,2]
[375759783,1753732241497,-500.0,0.00019973,2]
[375759784,1753732241506,-500.0,0.00019973,2]
[375759785,1753732241515,-500.0,0.00019973,2]